[Event "23rd Hoogeveen Open 2019"]
[Site "Hoogeveen"]
[Date "2019.10.20"]
[Round "2.27"]
[White "Van der Velde, Henk"]
[Black "Ypma, Jord"]
[Result "1/2-1/2"]
[ECO "A11"]
[WhiteElo "2118"]
[BlackElo "2013"]
[Annotator "NA"]
[PlyCount "70"]
[EventDate "2019.10.19"]
[EventType "swiss"]
[EventCountry "NED"]
[SourceTitle "playchess.com"]
[Source "ChessBase"]
[SourceQuality "1"]
[TimeControl "40/5400+30:1800+30"]

1. c4 {[%emt 0:35:34]} Nf6 {[%emt 0:00:00]} 2. g3 {[%emt 0:00:08]} c6 {[%emt 0:00:04]} 3. Bg2 {[%emt 0:00:13]} d5 {[%emt 0:00:16]} 4. Nf3 {[%emt 0:00:09]} Bg4 {[%emt 0:00:24]} 5. Ne5 {[%emt 0:02:49]} Be6 {[%emt 0:00:06]} 6. cxd5 {[%emt 0:00:37]} Bxd5 {[%emt 0:00:15]} 7. Nf3 {[%emt 0:00:42]} c5 {[%emt 0:00:26]} 8. Nc3 {[%emt 0:00:56]} Bc6 {[%emt 0:00:06]} 9. O-O {[%emt 0:02:30]} e6 {[%emt 0:00:18]} 10. d3 {[%emt 0:03:05]} Be7 {[%emt 0:00:37]} 11. Bf4 {[%emt 0:06:54]} O-O {[%emt 0:02:18]} 12. Qc2 {[%emt 0:08:00]} b5 {[%emt 0:10:53]} 13. a3 {[%emt 0:12:59]} a6 {[%emt 0:08:23]} 14. Rfd1 {[%emt 0:01:58]} Bb7 {[%emt 0:08:50]} 15. d4 {[%emt 0:02:17]} Qb6 {[%emt 0:02:43]} 16. e4 {[%emt 0:05:35]} cxd4 {[%emt 0:10:05]} 17. Nxd4 {[%emt 0:00:25]} Nc6 {[%emt 0:02:55]} 18. Nxc6 {[%emt 0:03:26]} Qxc6 {[%emt 0:03:45]} 19. Rac1 {[%emt 0:01:11]} Rfd8 {[%emt 0:04:14]} 20. Rxd8+ {[%emt 0:02:02]} Rxd8 {[%emt 0:00:23]} 21. Qe2 {[%emt 0:00:15]} Bc5 {[%emt 0:16:53]} 22. b4 {[%emt 0:02:52]} Bd4 {[%emt 0:00:45]} 23. Nd5 {[%emt 0:00:58]} Qe8 {[%emt 0:02:10]} 24. Nxf6+ {[%emt 0:00:41]} Bxf6 {[%emt 0:04:06]} 25. e5 {[%emt 0:01:05]} Bxg2 {[%emt 0:00:30]} 26. exf6 {[%emt 0:01:33]} Bd5 {[%emt 0:04:16]} 27. fxg7 {[%emt 0:00:15]} Rc8 {[%emt 0:00:50]} 28. Rxc8 {[%emt 0:02:03]} Qxc8 {[%emt 0:00:01]} 29. f3 {[%emt 0:00:13]} Kxg7 {[%emt 0:01:46]} 30. Be5+ {[%emt 0:00:10]} f6 {[%emt 0:00:31]} 31. Bb2 {[%emt 0:00:06]} Qc6 {[%emt 0:02:03]} 32. Kf2 {[%emt 0:00:09]} Bc4 {[%emt 0:04:19]} 33. Qe3 {[%emt 0:00:32]} Qd5 {[%emt 0:02:13]} 34. Qd4 {[%emt 0:00:40]} Qxd4+ {[%emt 0:02:57]} 35. Bxd4 {[%emt 0:00:02]} e5 {[%emt 0:00:12]} 1/2-1/2

[Event "23rd Hoogeveen Open 2019"]
[Site "Hoogeveen"]
[Date "2019.10.20"]
[Round "2.28"]
[White "Garcia Morales, Ivette Ale"]
[Black "Nicolai, Amir"]
[Result "1/2-1/2"]
[ECO "A96"]
[WhiteElo "2013"]
[BlackElo "2117"]
[Annotator "NA"]
[PlyCount "31"]
[EventDate "2019.10.19"]
[EventType "swiss"]
[EventCountry "NED"]
[SourceTitle "playchess.com"]
[Source "ChessBase"]
[SourceQuality "1"]
[TimeControl "40/5400+30:1800+30"]

1. d4 {[%emt 1:30:30]} e6 {[%emt 0:00:00]} 2. Nf3 {[%emt 0:00:00]} f5 {[%emt 0:00:00]} 3. c4 {[%emt 0:00:00]} Nf6 {[%emt 0:00:00]} 4. g3 {[%emt 0:00:00]} Be7 {[%emt 0:00:00]} 5. Bg2 {[%emt 0:00:00]} O-O {[%emt 0:00:01]} 6. O-O {[%emt 0:00:00]} d6 {[%emt 0:00:11]} 7. b3 {[%emt 0:00:00]} Ne4 {[%emt 0:06:51]} 8. h4 {[%emt 0:00:00]} c6 {[%emt 0:04:45]} 9. Qc2 {[%emt 0:00:00]} Nd7 {[%emt 0:08:49]} 10. Bb2 {[%emt 0:00:00]} Qc7 {[%emt 0:07:30]} 11. Nc3 {[%emt 0:00:00]} Ndf6 {[%emt 0:11:31]} 12. Rad1 {[%emt 0:00:00]} Bd7 {[%emt 0:07:45]} 13. e3 {[%emt 0:00:00]} Be8 {[%emt 0:05:06]} 14. Ne2 {[%emt 0:00:00]} Ng4 {[%emt 0:01:43]} 15. Qc1 {[%emt 0:00:00]} Bf7 {[%emt 0:19:11]} 16. Ne1 {[%emt 0:00:00]} 1/2-1/2

[Event "23rd Hoogeveen Open 2019"]
[Site "Hoogeveen"]
[Date "2019.10.20"]
[Round "2.29"]
[White "Elgersma, Simon"]
[Black "Ricken, Katharina"]
[Result "1-0"]
[ECO "C10"]
[WhiteElo "2111"]
[BlackElo "1970"]
[Annotator "NA"]
[PlyCount "67"]
[EventDate "2019.10.19"]
[EventType "swiss"]
[EventCountry "NED"]
[SourceTitle "playchess.com"]
[Source "ChessBase"]
[SourceQuality "1"]
[TimeControl "40/5400+30:1800+30"]

1. e4 {[%emt 0:00:00]} e6 {[%emt 0:00:00]} 2. d4 {[%emt 0:00:00]} d5 {[%emt 0:00:00]} 3. Nc3 {[%emt 0:00:13]} Nc6 {[%emt 0:00:00]} 4. e5 {[%emt 0:00:10]} f6 {[%emt 0:00:00]} 5. Bb5 {[%emt 0:01:53]} Bd7 {[%emt 0:00:00]} 6. Nf3 {[%emt 0:00:32]} a6 {[%emt 0:00:03]} 7. Bxc6 {[%emt 0:02:01]} Bxc6 {[%emt 0:00:01]} 8. O-O {[%emt 0:01:53]} Qd7 {[%emt 0:00:01]} 9. Re1 {[%emt 0:07:53]} f5 {[%emt 0:00:34]} 10. a3 {[%emt 0:04:34]} O-O-O {[%emt 0:00:42]} 11. b4 {[%emt 0:02:07]} Nh6 {[%emt 0:01:32]} 12. Rb1 {[%emt 0:06:52]} Nf7 {[%emt 0:00:36]} 13. Qd3 {[%emt 0:10:25]} Bb5 {[%emt 0:06:28]} 14. Nxb5 {[%emt 0:05:42]} Qxb5 {[%emt 0:00:34]} 15. Qb3 {[%emt 0:04:18]} Qd7 {[%emt 0:10:38]} 16. a4 {[%emt 0:03:16]} b6 {[%emt 0:06:19]} 17. c4 {[%emt 0:06:30]} Be7 {[%emt 0:04:33]} 18. a5 {[%emt 0:06:21]} dxc4 {[%emt 0:06:54]} 19. Qxc4 {[%emt 0:00:33]} b5 {[%emt 0:00:25]} 20. Qc3 {[%emt 0:04:24]} g5 {[%emt 0:01:38]} 21. Bb2 {[%emt 0:04:30]} g4 {[%emt 0:06:23]} 22. Nd2 {[%emt 0:00:32]} h5 {[%emt 0:01:13]} 23. Rbc1 {[%emt 0:02:18]} Bg5 {[%emt 0:11:08]} 24. Re2 {[%emt 0:06:07]} Bxd2 {[%emt 0:03:52]} 25. Rxd2 {[%emt 0:00:08]} Kb7 {[%emt 0:02:33]} 26. d5 {[%emt 0:01:47]} Rc8 {[%emt 0:04:40]} 27. Qc5 {[%emt 0:03:15]} Ng5 {[%emt 0:06:03]} 28. Bd4 {[%emt 0:01:46]} Ra8 {[%emt 0:01:31]} 29. d6 {[%emt 0:02:24]} Rhc8 {[%emt 0:01:28]} 30. Rdc2 {[%emt 0:00:26]} Ne4 {[%emt 0:01:56]} 31. Qxc7+ {[%emt 0:00:10]} Rxc7 {[%emt 0:00:08]} 32. Rxc7+ {[%emt 0:00:02]} Qxc7 {[%emt 0:00:09]} 33. Rxc7+ {[%emt 0:00:06]} Kb8 {[%emt 0:00:12]} 34. Bb6 {[%emt 0:00:55]} 1-0

[Event "23rd Hoogeveen Open 2019"]
[Site "Hoogeveen"]
[Date "2019.10.20"]
[Round "2.30"]
[White "Hoffman, Ron"]
[Black "Shakhverdian, William"]
[Result "1/2-1/2"]
[ECO "D02"]
[WhiteElo "1991"]
[BlackElo "2109"]
[Annotator "NA"]
[PlyCount "167"]
[EventDate "2019.10.19"]
[EventType "swiss"]
[EventCountry "NED"]
[SourceTitle "playchess.com"]
[Source "ChessBase"]
[SourceQuality "1"]
[TimeControl "40/5400+30:1800+30"]

1. d4 {[%emt 0:00:00]} d5 {[%emt 0:00:20]} 2. Bf4 {[%emt 0:00:00]} Nf6 {[%emt 0:00:19]} 3. e3 {[%emt 0:00:00]} e6 {[%emt 0:01:58]} 4. Nd2 {[%emt 0:00:28]} Bd6 {[%emt 0:02:23]} 5. Bg3 {[%emt 0:00:27]} O-O {[%emt 0:00:14]} 6. Ngf3 {[%emt 0:02:27]} b6 {[%emt 0:00:09]} 7. c3 {[%emt 0:01:00]} Bb7 {[%emt 0:00:06]} 8. Bd3 {[%emt 0:03:41]} c5 {[%emt 0:02:52]} 9. Qe2 {[%emt 0:01:22]} Nc6 {[%emt 0:00:29]} 10. Bxd6 {[%emt 0:11:59]} Qxd6 {[%emt 0:00:06]} 11. dxc5 {[%emt 0:00:11]} Qxc5 {[%emt 0:05:06]} 12. e4 {[%emt 0:01:55]} dxe4 {[%emt 0:01:17]} 13. Nxe4 {[%emt 0:00:12]} Qe7 {[%emt 0:03:00]} 14. Nxf6+ {[%emt 0:27:07]} Qxf6 {[%emt 0:02:02]} 15. Qe4 {[%emt 0:10:46]} g6 {[%emt 0:01:13]} 16. O-O {[%emt 0:07:21]} Rad8 {[%emt 0:04:39]} 17. Rad1 {[%emt 0:01:31]} Na5 {[%emt 0:01:10]} 18. Qe5 {[%emt 0:01:10]} Qe7 {[%emt 0:02:03]} 19. Qe3 {[%emt 0:03:56]} Qf6 {[%emt 0:04:27]} 20. Qe5 {[%emt 0:04:01]} Kg7 {[%emt 0:02:32]} 21. Qxf6+ {[%emt 0:07:18]} Kxf6 {[%emt 0:00:12]} 22. Nd4 {[%emt 0:01:21]} e5 {[%emt 0:04:13]} 23. Nc2 {[%emt 0:01:10]} Ke7 {[%emt 0:04:13]} 24. Rfe1 {[%emt 0:01:24]} f6 {[%emt 0:00:59]} 25. Ne3 {[%emt 0:04:17]} Bc6 {[%emt 0:15:58]} 26. Bc2 {[%emt 0:04:11]} Nb7 {[%emt 0:05:33]} 27. b4 {[%emt 0:01:43]} Rxd1 {[%emt 0:01:29]} 28. Rxd1 {[%emt 0:00:03]} Rd8 {[%emt 0:00:03]} 29. Rxd8 {[%emt 0:00:20]} Nxd8 {[%emt 0:00:06]} 30. Kf1 {[%emt 0:00:40]} f5 {[%emt 0:00:37]} 31. f3 {[%emt 0:00:37]} Ne6 {[%emt 0:02:51]} 32. Kf2 {[%emt 0:00:06]} Nf4 {[%emt 0:02:10]} 33. g3 {[%emt 0:01:42]} Nh3+ {[%emt 0:00:47]} 34. Kg2 {[%emt 0:00:00]} Ng5 {[%emt 0:00:08]} 35. Bd1 {[%emt 0:00:03]} Nf7 {[%emt 0:04:33]} 36. Bb3 {[%emt 0:00:38]} Nd6 {[%emt 0:01:42]} 37. Kf2 {[%emt 0:00:19]} Nb5 {[%emt 0:00:29]} 38. Nd1 {[%emt 0:01:34]} Nd6 {[%emt 0:02:05]} 39. Ne3 {[%emt 0:00:26]} Kf6 {[%emt 0:01:23]} 40. h4 {[%emt 0:01:59]} h6 {[%emt 0:02:01]} 41. a4 {[%emt 0:10:12]} g5 {[%emt 0:02:22]} 42. hxg5+ {[%emt 0:03:01]} hxg5 {[%emt 0:00:07]} 43. Nd5+ {[%emt 0:04:13]} Bxd5 {[%emt 0:01:54]} 44. Bxd5 {[%emt 0:00:02]} Ne8 {[%emt 0:03:52]} 45. Ke3 {[%emt 0:03:20]} Ke7 {[%emt 0:02:23]} 46. Bb7 {[%emt 0:02:32]} Kd6 {[%emt 0:07:37]} 47. Bc8 {[%emt 0:00:45]} Ng7 {[%emt 0:00:13]} 48. g4 {[%emt 0:01:15]} fxg4 {[%emt 0:00:53]} 49. Bxg4 {[%emt 0:01:56]} Ne8 {[%emt 0:00:57]} 50. Ke4 {[%emt 0:04:13]} Nf6+ {[%emt 0:00:04]} 51. Kf5 {[%emt 0:00:23]} Nd5 {[%emt 0:00:07]} 52. Kxg5 {[%emt 0:00:14]} Nxc3 {[%emt 0:00:05]} 53. f4 {[%emt 0:02:48]} exf4 {[%emt 0:01:39]} 54. Kxf4 {[%emt 0:00:10]} Nd5+ {[%emt 0:00:11]} 55. Kf3 {[%emt 0:01:39]} Nxb4 {[%emt 0:00:03]} 56. Ke3 {[%emt 0:00:22]} Kc5 {[%emt 0:00:08]} 57. Kd2 {[%emt 0:00:27]} Kd4 {[%emt 0:03:48]} 58. Be2 {[%emt 0:00:22]} Nd5 {[%emt 0:03:27]} 59. a5 {[%emt 0:01:21]} bxa5 {[%emt 0:00:10]} 60. Kc2 {[%emt 0:00:16]} Nc3 {[%emt 0:00:50]} 61. Bf1 {[%emt 0:00:21]} Ne4 {[%emt 0:01:41]} 62. Kb3 {[%emt 0:01:01]} Nc5+ {[%emt 0:00:14]} 63. Ka3 {[%emt 0:00:03]} Kc3 {[%emt 0:00:24]} 64. Bb5 {[%emt 0:00:48]} Kd4 {[%emt 0:00:31]} 65. Bf1 {[%emt 0:00:12]} Kd5 {[%emt 0:00:59]} 66. Bg2+ {[%emt 0:00:15]} Kd6 {[%emt 0:00:20]} 67. Bf3 {[%emt 0:00:22]} Kc7 {[%emt 0:00:13]} 68. Be2 {[%emt 0:00:18]} Kb6 {[%emt 0:00:04]} 69. Bc4 {[%emt 0:00:38]} Ne4 {[%emt 0:01:48]} 70. Bf1 {[%emt 0:00:38]} Nd2 {[%emt 0:00:05]} 71. Bd3 {[%emt 0:00:16]} Nf3 {[%emt 0:00:19]} 72. Bf1 {[%emt 0:00:38]} Ne1 {[%emt 0:00:11]} 73. Be2 {[%emt 0:00:49]} Nc2+ {[%emt 0:00:07]} 74. Ka4 {[%emt 0:00:36]} a6 {[%emt 0:00:50]} 75. Bf1 {[%emt 0:00:39]} Nd4 {[%emt 0:00:17]} 76. Bd3 {[%emt 0:00:41]} Nb5 {[%emt 0:00:26]} 77. Bf1 {[%emt 0:00:18]} Nc3+ {[%emt 0:00:35]} 78. Kb3 {[%emt 0:00:07]} Ne4 {[%emt 0:00:22]} 79. Ka3 {[%emt 0:00:23]} Nc5 {[%emt 0:00:33]} 80. Be2 {[%emt 0:00:35]} Kc6 {[%emt 0:00:31]} 81. Bc4 {[%emt 0:00:18]} Kd6 {[%emt 0:00:17]} 82. Bxa6 {[%emt 0:00:21]} Nxa6 {[%emt 0:00:19]} 83. Ka4 {[%emt 0:00:01]} Nc5+ {[%emt 0:00:07]} 84. Kxa5 {[%emt 0:00:04]} 1/2-1/2

[Event "23rd Hoogeveen Open 2019"]
[Site "Hoogeveen"]
[Date "2019.10.20"]
[Round "2.31"]
[White "Albers, Sasa"]
[Black "Takawira, Erick"]
[Result "1/2-1/2"]
[ECO "C85"]
[WhiteElo "1975"]
[BlackElo "2101"]
[Annotator "NA"]
[PlyCount "115"]
[EventDate "2019.10.19"]
[EventType "swiss"]
[EventCountry "NED"]
[SourceTitle "playchess.com"]
[Source "ChessBase"]
[SourceQuality "1"]
[TimeControl "40/5400+30:1800+30"]

1. e4 {[%emt 0:00:00]} e5 {[%emt 0:00:00]} 2. Nf3 {[%emt 0:00:00]} Nc6 {[%emt 0:00:00]} 3. Bb5 {[%emt 0:00:00]} a6 {[%emt 0:00:00]} 4. Ba4 {[%emt 0:00:00]} Nf6 {[%emt 0:00:00]} 5. O-O {[%emt 0:00:00]} Be7 {[%emt 0:00:00]} 6. Bxc6 {[%emt 0:00:00]} dxc6 {[%emt 0:00:00]} 7. d3 {[%emt 0:00:05]} Bg4 {[%emt 0:04:01]} 8. Nbd2 {[%emt 0:00:33]} Nd7 {[%emt 0:01:31]} 9. Nc4 {[%emt 0:00:52]} O-O {[%emt 0:01:30]} 10. h3 {[%emt 0:00:13]} Bxf3 {[%emt 0:02:48]} 11. Qxf3 {[%emt 0:00:01]} Bg5 {[%emt 0:16:01]} 12. Qg3 {[%emt 0:24:22]} Bxc1 {[%emt 0:04:15]} 13. Raxc1 {[%emt 0:00:01]} f6 {[%emt 0:09:32]} 14. Ne3 {[%emt 0:06:31]} Nc5 {[%emt 0:04:54]} 15. Nf5 {[%emt 0:01:25]} Ne6 {[%emt 0:14:31]} 16. d4 {[%emt 0:07:43]} exd4 {[%emt 0:04:05]} 17. Qb3 {[%emt 0:00:02]} Qd7 {[%emt 0:00:34]} 18. c3 {[%emt 0:11:51]} d3 {[%emt 0:04:13]} 19. Nd4 {[%emt 0:03:01]} Rfe8 {[%emt 0:00:51]} 20. Rcd1 {[%emt 0:00:47]} c5 {[%emt 0:11:15]} 21. Nxe6 {[%emt 0:01:26]} Rxe6 {[%emt 0:00:24]} 22. Rxd3 {[%emt 0:01:18]} Qxd3 {[%emt 0:00:45]} 23. Qxe6+ {[%emt 0:00:02]} Kf8 {[%emt 0:02:18]} 24. Qf5 {[%emt 0:01:42]} b6 {[%emt 0:09:05]} 25. Qxh7 {[%emt 0:00:21]} Rd8 {[%emt 0:02:22]} 26. Qh8+ {[%emt 0:01:07]} Kf7 {[%emt 0:00:02]} 27. Qh5+ {[%emt 0:00:10]} Kg8 {[%emt 0:00:17]} 28. Qg4 {[%emt 0:20:39]} Re8 {[%emt 0:02:34]} 29. Re1 {[%emt 0:01:01]} a5 {[%emt 0:03:11]} 30. Qe2 {[%emt 0:00:35]} Qd7 {[%emt 0:01:01]} 31. a3 {[%emt 0:02:16]} Qe6 {[%emt 0:00:08]} 32. Qd2 {[%emt 0:08:39]} Re7 {[%emt 0:00:20]} 33. Re3 {[%emt 0:02:30]} Rd7 {[%emt 0:00:09]} 34. Rd3 {[%emt 0:00:12]} Rxd3 {[%emt 0:02:00]} 35. Qxd3 {[%emt 0:00:02]} Qe7 {[%emt 0:00:44]} 36. Qd5+ {[%emt 0:00:13]} Kh7 {[%emt 0:00:33]} 37. h4 {[%emt 0:01:18]} Kh8 {[%emt 0:00:55]} 38. h5 {[%emt 0:00:59]} Kh7 {[%emt 0:00:29]} 39. Qf5+ {[%emt 0:00:30]} Kh8 {[%emt 0:00:08]} 40. Qg6 {[%emt 0:02:58]} Qf8 {[%emt 0:01:42]} 41. Kh1 {[%emt 0:13:29]} c4 {[%emt 0:05:43]} 42. Kg1 {[%emt 0:02:38]} b5 {[%emt 0:03:15]} 43. Qf5 {[%emt 0:04:13]} Qe7 {[%emt 0:06:26]} 44. Qd5 {[%emt 0:06:09]} Qe8 {[%emt 0:07:15]} 45. a4 {[%emt 0:02:39]} c6 {[%emt 0:00:02]} 46. Qf5 {[%emt 0:00:54]} Qd8 {[%emt 0:08:04]} 47. axb5 {[%emt 0:03:14]} cxb5 {[%emt 0:00:39]} 48. Qd5 {[%emt 0:01:37]} Qb6 {[%emt 0:00:32]} 49. Kf1 {[%emt 0:01:30]} a4 {[%emt 0:00:14]} 50. Ke1 {[%emt 0:00:42]} b4 {[%emt 0:01:14]} 51. Qxc4 {[%emt 0:00:29]} a3 {[%emt 0:00:28]} 52. Qc8+ {[%emt 0:01:22]} Kh7 {[%emt 0:00:09]} 53. Qf5+ {[%emt 0:00:04]} Kh8 {[%emt 0:00:06]} 54. bxa3 {[%emt 0:00:33]} bxa3 {[%emt 0:00:23]} 55. Qc8+ {[%emt 0:00:38]} Kh7 {[%emt 0:00:45]} 56. Qf5+ {[%emt 0:00:24]} Kh8 {[%emt 0:00:39]} 57. Qc8+ {[%emt 0:00:31]} Kh7 {[%emt 0:00:07]} 58. Qf5+ {[%emt 0:00:37]} 1/2-1/2

[Event "23rd Hoogeveen Open 2019"]
[Site "Hoogeveen"]
[Date "2019.10.20"]
[Round "2.32"]
[White "Labruyere, Roger"]
[Black "Gijsen, William"]
[Result "1-0"]
[ECO "E01"]
[WhiteElo "1932"]
[BlackElo "2091"]
[Annotator "NA"]
[PlyCount "153"]
[EventDate "2019.10.19"]
[EventType "swiss"]
[EventCountry "NED"]
[SourceTitle "playchess.com"]
[Source "ChessBase"]
[SourceQuality "1"]
[TimeControl "40/5400+30:1800+30"]

1. d4 {[%emt 0:00:00]} d5 {[%emt 0:00:00]} 2. c4 {[%emt 0:00:00]} c6 {[%emt 0:00:00]} 3. Nf3 {[%emt 0:00:03]} e6 {[%emt 0:00:00]} 4. g3 {[%emt 0:00:31]} Nf6 {[%emt 0:00:43]} 5. Bg2 {[%emt 0:00:06]} Nbd7 {[%emt 0:01:10]} 6. O-O {[%emt 0:01:19]} Bd6 {[%emt 0:01:12]} 7. Nc3 {[%emt 0:01:02]} O-O {[%emt 0:00:29]} 8. Qc2 {[%emt 0:01:12]} Re8 {[%emt 0:00:40]} 9. e4 {[%emt 0:01:40]} dxe4 {[%emt 0:00:07]} 10. Nxe4 {[%emt 0:00:05]} Nxe4 {[%emt 0:00:05]} 11. Qxe4 {[%emt 0:00:05]} Nf6 {[%emt 0:07:31]} 12. Qc2 {[%emt 0:00:25]} c5 {[%emt 0:00:34]} 13. Rd1 {[%emt 0:05:56]} Qc7 {[%emt 0:03:05]} 14. Be3 {[%emt 0:06:03]} Ng4 {[%emt 0:03:26]} 15. Ng5 {[%emt 0:02:31]} f5 {[%emt 0:00:10]} 16. d5 {[%emt 0:10:52]} Nxe3 {[%emt 0:02:40]} 17. fxe3 {[%emt 0:00:54]} e5 {[%emt 0:01:16]} 18. e4 {[%emt 0:13:07]} Qe7 {[%emt 0:06:09]} 19. Ne6 {[%emt 0:09:15]} Bxe6 {[%emt 0:01:49]} 20. dxe6 {[%emt 0:00:09]} f4 {[%emt 0:00:54]} 21. gxf4 {[%emt 0:08:44]} Qxe6 {[%emt 0:08:18]} 22. f5 {[%emt 0:02:28]} Qf6 {[%emt 0:00:46]} 23. Qd3 {[%emt 0:01:19]} Rad8 {[%emt 0:01:20]} 24. Qd5+ {[%emt 0:00:17]} Kh8 {[%emt 0:02:23]} 25. Qxb7 {[%emt 0:00:40]} Rb8 {[%emt 0:11:26]} 26. Qc6 {[%emt 0:00:54]} Red8 {[%emt 0:00:40]} 27. b3 {[%emt 0:00:30]} Rb6 {[%emt 0:04:35]} 28. Qa4 {[%emt 0:00:23]} Bf8 {[%emt 0:12:17]} 29. Rd5 {[%emt 0:09:53]} Rxd5 {[%emt 0:00:22]} 30. cxd5 {[%emt 0:00:06]} Rb4 {[%emt 0:00:39]} 31. Qxa7 {[%emt 0:03:30]} Rd4 {[%emt 0:00:17]} 32. Qa5 {[%emt 0:03:29]} Qg5 {[%emt 0:01:02]} 33. Qe1 {[%emt 0:00:40]} Rd2 {[%emt 0:02:15]} 34. Qg3 {[%emt 0:01:15]} Qh6 {[%emt 0:02:24]} 35. Rf1 {[%emt 0:06:05]} Bd6 {[%emt 0:04:29]} 36. a4 {[%emt 0:00:25]} Ra2 {[%emt 0:02:26]} 37. f6 {[%emt 0:03:06]} gxf6 {[%emt 0:00:21]} 38. Qg4 {[%emt 0:00:54]} c4 {[%emt 0:02:51]} 39. Qc8+ {[%emt 0:00:28]} Bf8 {[%emt 0:00:36]} 40. bxc4 {[%emt 0:01:52]} Qg7 {[%emt 0:04:11]} 41. Qh3 {[%emt 0:30:10]} Rxa4 {[%emt 0:31:05]} 42. Qb3 {[%emt 0:04:53]} Ra3 {[%emt 0:00:14]} 43. Qc2 {[%emt 0:00:50]} Qa7+ {[%emt 0:02:20]} 44. Kh1 {[%emt 0:00:27]} Ra2 {[%emt 0:00:06]} 45. Qd3 {[%emt 0:01:33]} Ra3 {[%emt 0:04:12]} 46. Qe2 {[%emt 0:01:20]} Ra1 {[%emt 0:05:06]} 47. Qf3 {[%emt 0:00:00]} Be7 {[%emt 0:00:00]} 48. Qh5 {[%emt 0:00:00]} Kg7 {[%emt 0:00:00]} 49. Qg4+ {[%emt 0:00:00]} Kf8 {[%emt 0:00:00]} 50. Qc8+ {[%emt 0:00:00]} Kg7 {[%emt 0:00:00]} 51. Qe6 {[%emt 0:00:00]} Qa3 {[%emt 0:00:00]} 52. Qg4+ {[%emt 0:00:00]} Kf7 {[%emt 0:00:00]} 53. Qe2 {[%emt 0:00:00]} Bc5 {[%emt 0:00:00]} 54. Qh5+ {[%emt 0:00:00]} Kg7 {[%emt 0:00:00]} 55. Qg4+ {[%emt 0:00:00]} Kf8 {[%emt 0:00:00]} 56. Qc8+ {[%emt 0:00:00]} Kg7 {[%emt 0:00:00]} 57. Qg4+ {[%emt 0:00:00]} Kf8 {[%emt 0:00:00]} 58. Qf5 {[%emt 0:00:00]} Be7 {[%emt 0:00:00]} 59. h3 {[%emt 0:00:00]} Kg7 {[%emt 0:00:00]} 60. Kh2 {[%emt 0:00:00]} Rxf1 {[%emt 0:00:00]} 61. Qf4 {[%emt 0:00:30]} Rf2 62. Qxf2 {[%emt 0:00:00]} Bc5 {[%emt 0:00:00]} 63. Qe2 {[%emt 0:00:36]} Be3 {[%emt 0:00:00]} 64. Qg4+ {[%emt 0:00:11]} Kf7 {[%emt 0:00:00]} 65. Qe6+ {[%emt 0:01:12]} Kg7 {[%emt 0:00:00]} 66. Qg4+ {[%emt 0:01:26]} Kf7 {[%emt 0:00:13]} 67. Kg3 {[%emt 0:01:34]} Bf4+ {[%emt 0:02:22]} 68. Kh4 {[%emt 0:00:20]} Bg5+ {[%emt 0:02:18]} 69. Kh5 {[%emt 0:00:22]} Qe7 {[%emt 0:06:14]} 70. h4 {[%emt 0:00:53]} Bf4 {[%emt 0:00:47]} 71. Bh3 {[%emt 0:01:27]} Kf8 {[%emt 0:01:01]} 72. Qc8+ {[%emt 0:00:24]} Kg7 {[%emt 0:00:33]} 73. Be6 {[%emt 0:00:26]} Qf8 {[%emt 0:00:30]} 74. Qxf8+ {[%emt 0:00:12]} Kxf8 {[%emt 0:00:02]} 75. c5 {[%emt 0:00:08]} Be3 {[%emt 0:03:09]} 76. c6 {[%emt 0:00:05]} Bb6 {[%emt 0:00:44]} 77. d6 {[%emt 0:00:07] Ke7} 1-0

[Event "23rd Hoogeveen Open 2019"]
[Site "Hoogeveen"]
[Date "2019.10.20"]
[Round "2.33"]
[White "Van Dorp, Folke"]
[Black "Vasse, Albert"]
[Result "1-0"]
[ECO "B23"]
[WhiteElo "2086"]
[BlackElo "1934"]
[Annotator "NA"]
[PlyCount "111"]
[EventDate "2019.10.19"]
[EventType "swiss"]
[EventCountry "NED"]
[SourceTitle "playchess.com"]
[Source "ChessBase"]
[SourceQuality "1"]
[TimeControl "40/5400+30:1800+30"]

1. e4 {[%emt 0:00:00]} c5 {[%emt 0:00:00]} 2. Nc3 {[%emt 0:00:00]} Nc6 {[%emt 0:00:01]} 3. Bb5 {[%emt 0:00:00]} g6 {[%emt 0:00:38]} 4. f4 {[%emt 0:00:31]} Bg7 {[%emt 0:00:07]} 5. Nf3 {[%emt 0:00:11]} d6 {[%emt 0:00:27]} 6. Bxc6+ {[%emt 0:00:16]} bxc6 {[%emt 0:00:11]} 7. O-O {[%emt 0:00:05]} e6 {[%emt 0:03:48]} 8. d3 {[%emt 0:00:23]} Rb8 {[%emt 0:02:11]} 9. f5 {[%emt 0:10:35]} exf5 {[%emt 0:06:03]} 10. Qe1 {[%emt 0:03:13]} Ne7 {[%emt 0:03:43]} 11. Qh4 {[%emt 0:05:39]} f6 {[%emt 0:07:51]} 12. Bh6 {[%emt 0:02:24]} O-O {[%emt 0:01:55]} 13. Bxg7 {[%emt 0:08:00]} Kxg7 {[%emt 0:01:07]} 14. b3 {[%emt 0:00:51]} h6 {[%emt 0:07:02]} 15. Qg3 {[%emt 0:02:54]} g5 {[%emt 0:14:55]} 16. exf5 {[%emt 0:06:14]} Nxf5 {[%emt 0:02:32]} 17. Qf2 {[%emt 0:00:05]} Ne7 {[%emt 0:07:37]} 18. Rae1 {[%emt 0:06:36]} Nd5 {[%emt 0:01:59]} 19. Nxd5 {[%emt 0:06:23]} cxd5 {[%emt 0:00:11]} 20. Qg3 {[%emt 0:02:27]} Rb7 {[%emt 0:00:45]} 21. h4 {[%emt 0:06:01]} Rbf7 {[%emt 0:01:00]} 22. Rf2 {[%emt 0:04:00]} g4 {[%emt 0:02:15]} 23. Nd2 {[%emt 0:02:39]} f5 {[%emt 0:00:18]} 24. Rf4 {[%emt 0:01:04]} Re8 {[%emt 0:01:38]} 25. Ref1 {[%emt 0:05:02]} Re2 {[%emt 0:01:43]} 26. R1f2 {[%emt 0:03:07]} Rfe7 {[%emt 0:01:07]} 27. Rxe2 {[%emt 0:07:10]} Rxe2 {[%emt 0:00:08]} 28. Rf2 {[%emt 0:00:34]} Re1+ {[%emt 0:01:42]} 29. Rf1 {[%emt 0:02:15]} Rxf1+ {[%emt 0:00:06]} 30. Nxf1 {[%emt 0:00:21]} Qf6 {[%emt 0:00:26]} 31. Qf4 {[%emt 0:00:59]} Qe5 {[%emt 0:00:52]} 32. Qa4 {[%emt 0:01:05]} a6 {[%emt 0:00:34]} 33. Qc6 {[%emt 0:01:16]} Qe6 {[%emt 0:00:33]} 34. g3 {[%emt 0:01:05]} Kf6 {[%emt 0:00:51]} 35. Kf2 {[%emt 0:01:00]} d4 {[%emt 0:05:08]} 36. Qc7 {[%emt 0:00:37]} Qd7 {[%emt 0:01:35]} 37. Qb6 {[%emt 0:01:24]} Bb7 {[%emt 0:00:42]} 38. Nd2 {[%emt 0:00:19]} Ke6 {[%emt 0:00:59]} 39. Ke1 {[%emt 0:07:50]} Qc6 {[%emt 0:00:58]} 40. Qd8 {[%emt 0:00:09]} Qc8 {[%emt 0:06:58]} 41. Qb6 {[%emt 0:31:12]} Bd5 {[%emt 0:32:27]} 42. a4 {[%emt 0:00:00]} Kd7 {[%emt 0:00:00]} 43. Nc4 {[%emt 0:00:00]} Bc6 {[%emt 0:00:00]} 44. b4 {[%emt 0:00:00]} cxb4 {[%emt 0:00:00]} 45. Qxd4 {[%emt 0:00:00]} Qe8+ {[%emt 0:00:00]} 46. Kd2 {[%emt 0:00:00]} Qe7 {[%emt 0:03:31]} 47. Qa7+ {[%emt 0:00:00]} Ke6 {[%emt 0:01:46]} 48. Qe3+ {[%emt 0:00:00]} Kd7 {[%emt 0:00:42]} 49. Qa7+ {[%emt 0:00:00]} Ke6 {[%emt 0:00:21]} 50. Qxa6 {[%emt 0:00:00]} Qb7 {[%emt 0:00:34]} 51. Qxb7 {[%emt 0:00:00]} Bxb7 {[%emt 0:00:10]} 52. Ke3 {[%emt 0:00:00]} Ba6 {[%emt 0:04:03]} 53. Kf4 {[%emt 0:00:00]} d5 {[%emt 0:00:48]} 54. Nd2 {[%emt 0:00:00]} Bc8 {[%emt 0:02:01]} 55. Nb3 {[%emt 0:00:00]} Ba6 {[%emt 0:02:49]} 56. Nc5+ {[%emt 0:00:00]} 1-0